fUSD/lending_fUSD_20251212
["ID","MTS","AMOUNT","RATE_DAILY","PERIOD"]
[398390586,1765581031700,-373.29972738,0.00015885,2]
[398390589,1765581031751,-1379.67885361,0.00015885,2]
[398390591,1765581031763,-264.59999972,0.00015885,2]
[398390593,1765581031775,-1585.10498767,0.00015885,2]
[398390594,1765581031787,-3002.40558964,0.00015885,2]
[398390595,1765581031857,-728.33787106,0.00015885,2]
[398390596,1765581031871,-304.24350998,0.00015885,2]
[398390661,1765581037858,-15826.52946094,0.00015885,2]
[398390662,1765581037868,-150.0,0.000162,2]
[398390663,1765581037878,-150.0,0.000162,2]
[398390664,1765581037887,-150.0,0.000162,2]
[398390665,1765581037897,-150.0,0.000162,2]
[398390666,1765581037907,-250.0,0.00016205,2]
[398390667,1765581037916,-999.0,0.00016213,3]
[398390668,1765581037926,-500.0,0.00016224,2]
[398390669,1765581037936,-500.0,0.00016224,2]
[398390670,1765581037946,-500.0,0.00016224,2]
[398390671,1765581037955,-110.99970682,0.00016224,2]
[398390672,1765581037967,-389.00029318,0.00016224,2]
[398390673,1765581037977,-500.0,0.00016224,2]
[398390674,1765581037986,-349.95761778,0.00016224,2]
[398390675,1765581038046,-150.04238222,0.00016224,2]
[398390676,1765581038056,-500.0,0.00016224,2]
[398390677,1765581038066,-500.0,0.00016224,2]
[398390679,1765581038076,-500.0,0.00016224,2]
[398390681,1765581038086,-500.0,0.00016224,2]
[398390683,1765581038096,-315.41528787,0.00016224,2]
[398390685,1765581038106,-197.71650794,0.00016224,2]
[398390687,1765581038118,-60.25481514,0.00016224,2]
[398390689,1765581038129,-500.0,0.00016224,2]
[398390691,1765581038139,-500.0,0.00016224,2]
[398390693,1765581038149,-500.0,0.00016224,2]
[398390695,1765581038159,-500.0,0.00016224,2]
[398390697,1765581038173,-500.0,0.00016224,2]
[398390699,1765581038183,-500.0,0.00016224,2]
[398390701,1765581038193,-500.0,0.00016224,2]
[398390703,1765581038202,-76.56577414,0.00016224,2]
[398390705,1765581038214,-423.43422586,0.00016224,2]
[398390707,1765581038224,-398.26865366,0.00016224,2]
[398390709,1765581038235,-101.73134634,0.00016224,2]
[398390711,1765581038249,-500.0,0.00016224,2]
[398390713,1765581038259,-393.29447698,0.00016224,2]
[398390728,1765581040281,-106.70552302,0.00016224,2]
[398390729,1765581040291,-500.0,0.00016224,2]
[398390730,1765581040300,-500.0,0.00016224,2]
[398390731,1765581040310,-500.0,0.00016224,2]
[398390732,1765581040319,-500.0,0.00016224,2]
[398390733,1765581040329,-500.0,0.00016224,2]
[398390734,1765581040338,-500.0,0.00016224,2]
[398390735,1765581040347,-500.0,0.00016224,2]
[398390736,1765581040357,-500.0,0.00016224,2]
[398390737,1765581040366,-500.0,0.00016224,2]
[398390738,1765581040375,-500.0,0.00016224,2]
[398390739,1765581040386,-500.0,0.00016224,2]
[398390740,1765581040395,-1200.0,0.00016224,2]
[398390741,1765581040404,-300.0,0.00016224,2]
[398390742,1765581040413,-76.16915704,0.00016225,2]
[398390743,1765581040424,-395.92311807,0.00016225,2]
[398390761,1765581042830,-3767.04636651,0.00016225,2]
[398390768,1765581045797,-302.0,0.00016225,2]
[398390770,1765581046014,-357.449822,0.00016225,2]
[398390779,1765581244742,166.66,0.00015001,2]
[398390780,1765581244964,166.66,0.00015317,2]
[398390782,1765581455030,252.31158033,0.00015469,2]
[398390790,1765581692829,150.0,0.00015436,2]
[398390797,1765581799743,200.0,0.00015312,2]
[398390798,1765581800428,200.0,0.00015313,2]
[398390799,1765581918547,150.0,0.00014942,2]
[398390800,1765581918687,150.0,0.00014942,2]
[398390801,1765581924569,150.0,0.00014942,2]
[398390802,1765581924665,150.0,0.00014942,2]
[398390803,1765581930030,150.0,0.00014942,2]
[398390804,1765581931477,150.0,0.00014942,2]
[398390805,1765581936908,150.0,0.00014942,2]
[398390806,1765581936979,150.0,0.00014942,2]
[398390807,1765581940001,150.0,0.00014942,2]
[398390814,1765582107681,2723.76798456,0.0001,2]
[398390815,1765582117864,2579.30262732,0.0001,2]
[398390816,1765582121167,1619.96,0.0001534,2]
[398390837,1765582206617,1000.0,0.00015328,2]
[398390846,1765582231930,-250.0,0.00015616,2]
[398390848,1765582232234,-166.66,0.00015633,2]
[398390849,1765582232250,-250.11,0.00015836,2]
[398390850,1765582232260,-250.0,0.0001589,2]
[398390851,1765582232270,-300.0,0.00015932,2]
[398390852,1765582232280,-1200.0,0.00015932,2]
[398390853,1765582232290,-300.0,0.00015932,2]
[398390854,1765582232299,-274.25308577,0.00015933,2]
[398390855,1765582232309,-500.0,0.00015933,2]
[398390856,1765582232319,-500.0,0.00015933,2]
[398390857,1765582232328,-417.55236923,0.00015933,2]
[398390858,1765582232339,-191.97716003,0.00015933,2]
[398390859,1765582232348,-52098.73034116,0.00015934,2]
[398390860,1765582232360,-1135.57030507,0.00015934,2]
[398390861,1765582232372,-2528.40019309,0.00015934,2]
[398390878,1765582246091,-400.23705092,0.00015934,2]
[398390924,1765582437498,381.29,0.00013699,2]
[398390925,1765582487368,25676.63,0.00025,30]
[398390926,1765582514007,200.0,0.00015238,2]
[398390927,1765582516348,1600.0,0.00015234,2]
[398390928,1765582560262,7466.75,0.00015193,2]
[398390930,1765582645227,999.0,0.00015188,3]
[398390931,1765582770461,173.12,0.00015124,2]
[398390932,1765582999733,200.0,0.00015003,2]
[398390933,1765583028174,2064.91,0.00015081,2]
[398390934,1765583104669,166.7,0.00015398,2]
[398390935,1765583107289,150.0,0.00014918,2]
[398390936,1765583107337,150.0,0.00015036,2]
[398390937,1765583107407,150.0,0.00015155,2]
[398390938,1765583107465,150.0,0.00015273,2]
[398390939,1765583107533,150.0,0.00015391,2]
[398390940,1765583107604,150.0,0.0001551,2]
[398390941,1765583108449,150.0,0.00014918,2]
[398390942,1765583108492,150.0,0.00015194,2]
[398390943,1765583108549,150.0,0.0001547,2]
[398390944,1765583108922,150.0,0.00014918,2]
[398390945,1765583108964,150.0,0.00015015,2]
[398390946,1765583109067,150.0,0.00015113,2]
[398390947,1765583109211,150.0,0.0001521,2]
[398390948,1765583109345,150.0,0.00015308,2]
[398390949,1765583109453,150.0,0.00015405,2]
[398390950,1765583109491,150.0,0.00015503,2]
[398390951,1765583113599,150.0,0.00014918,2]
[398390952,1765583113684,150.0,0.00014997,2]
[398390953,1765583113802,150.0,0.00015076,2]
[398390954,1765583113946,150.0,0.00015155,2]
[398390955,1765583114207,150.0,0.00015234,2]
[398390956,1765583114289,150.0,0.00015312,2]
[398390957,1765583114391,150.0,0.00015391,2]
[398390958,1765583114498,150.0,0.0001547,2]
[398390959,1765583114565,150.0,0.00015549,2]
[398390960,1765583117889,150.0,0.00014918,2]
[398390961,1765583117960,150.0,0.00015084,2]
[398390962,1765583118024,150.0,0.00015249,2]
[398390963,1765583118092,150.0,0.00015415,2]
[398390964,1765583124385,150.0,0.00014918,2]
[398390965,1765583124462,150.0,0.00014918,2]
[398390966,1765583124506,150.0,0.00015084,2]
[398390967,1765583124559,150.0,0.00015249,2]
[398390968,1765583124601,150.0,0.00015415,2]
[398390969,1765583129052,150.0,0.00014918,2]
[398390970,1765583135175,150.0,0.00014918,2]
[398390971,1765583135645,150.0,0.00014918,2]
[398390972,1765583135812,150.0,0.00015102,2]
[398390973,1765583135953,150.0,0.00015286,2]
[398390974,1765583136069,150.0,0.0001547,2]
[398390975,1765583205608,150.0,0.0001484,2]
[398390976,1765583343126,1000.0,0.00015187,3]
[398390978,1765583432210,-150.0,0.00015581,2]
[398390979,1765583432220,-150.0,0.00015581,2]
[398390980,1765583432230,-150.0,0.000156,2]
[398390981,1765583432239,-150.0,0.00015628,2]
[398390982,1765583432249,-150.0,0.00015628,2]
[398390983,1765583432258,-150.0,0.00015654,2]
[398390984,1765583432267,-85.21312914,0.00015698,2]
[398390985,1765583432279,-64.78687086,0.00015698,2]
[398390986,1765583432288,-877.6523233,0.00015706,2]
[398390987,1765583432297,-150.0,0.00015707,2]
[398390988,1765583432307,-150.09557627,0.00015734,2]
[398390989,1765583432316,-300.0,0.00015746,2]
[398390990,1765583432325,-1200.0,0.00015746,2]
[398390991,1765583432334,-150.0,0.00015747,2]
[398390992,1765583432344,-150.0,0.00015747,2]
[398390993,1765583432353,-150.0,0.00015747,2]
[398390994,1765583432362,-150.0,0.00015747,2]
[398390995,1765583432371,-150.0,0.00015747,2]
[398390996,1765583432380,-150.0,0.00015786,2]
[398390997,1765583432389,-150.0,0.00015795,2]
[398390998,1765583432399,-151.0,0.00015824,2]
[398390999,1765583432408,-151.0,0.00015824,2]
[398391000,1765583432418,-612.51,0.00015824,3]
[398391001,1765583432427,-500.0,0.00015824,2]
[398391002,1765583432437,-151.0,0.00015824,2]
[398391003,1765583432447,-151.0,0.00015824,2]
[398391004,1765583432457,-151.0,0.00015824,2]
[398391006,1765583432469,-151.0,0.00015824,2]
[398391007,1765583432478,-151.0,0.00015824,2]
[398391008,1765583432488,-151.0,0.00015824,2]
[398391009,1765583432497,-151.0,0.00015824,2]
[398391010,1765583432506,-151.0,0.00015824,2]
[398391011,1765583432516,-151.0,0.00015824,2]
[398391012,1765583432526,-151.0,0.00015824,2]
[398391013,1765583432535,-151.0,0.00015824,2]
[398391014,1765583432545,-200.0,0.00015824,2]
[398391015,1765583432554,-200.0,0.00015824,2]
[398391016,1765583432563,-151.0,0.00015827,2]
[398391017,1765583432572,-151.0,0.00015827,2]
[398391018,1765583432581,-151.0,0.00015827,2]
[398391019,1765583432591,-151.0,0.00015827,2]
[398391020,1765583432600,-151.0,0.00015827,2]
[398391021,1765583432614,-166.65,0.00015827,2]
[398391022,1765583432623,-151.975335,0.00015828,2]
[398391023,1765583432633,-151.0,0.00015828,2]
[398391024,1765583432643,-308.401252,0.00015828,2]
[398391025,1765583432653,-151.0,0.00015828,2]
[398391026,1765583432664,-308.401252,0.00015828,2]
[398391027,1765583432678,-308.401252,0.00015828,2]
[398391028,1765583432688,-308.401252,0.00015828,2]
[398391029,1765583432697,-151.0,0.00015828,2]
[398391030,1765583432707,-151.0,0.00015828,2]
[398391031,1765583432718,-151.0,0.00015828,2]
[398391032,1765583432727,-500.0,0.00015829,2]
[398391033,1765583432738,-229.11944087,0.00015829,2]
[398391034,1765583432748,-172.37133591,0.00015829,2]
[398391035,1765583432759,-228.98176303,0.00015829,2]
[398391036,1765583432769,-224.044894,0.00015829,2]
[398391037,1765583432779,-224.044894,0.00015829,2]
[398391038,1765583432789,-224.044894,0.00015829,2]
[398391039,1765583432798,-224.044894,0.00015829,2]
[398391040,1765583432808,-151.0,0.00015829,2]
[398391041,1765583432818,-151.0,0.00015829,2]
[398391042,1765583432828,-151.0,0.00015829,2]
[398391043,1765583432837,-151.0,0.00015829,2]
[398391044,1765583432847,-244.303735,0.00015829,2]
[398391045,1765583432857,-244.303735,0.00015829,2]
[398391046,1765583432867,-244.303735,0.00015829,2]
[398391047,1765583432877,-244.303735,0.00015829,2]
[398391048,1765583432887,-308.401252,0.00015829,2]
[398391049,1765583432896,-308.401252,0.00015829,2]
[398391050,1765583432907,-308.401252,0.00015829,2]
[398391051,1765583432918,-308.401252,0.00015829,2]
[398391052,1765583432927,-278.04,0.0001583,2]
[398391053,1765583432937,-8928.5,0.0001583,2]
[398391054,1765583432947,-8679.31059601,0.0001583,2]
[398391055,1765583432968,-1320.67940399,0.0001583,2]
[398391056,1765583432989,-1652.7113349,0.0001583,2]
[398391057,1765583433014,-561.03394185,0.0001583,2]
[398391058,1765583433148,-4648.70202146,0.0001583,2]
[398391059,1765583438323,-151.0,0.00015827,2]
[398391060,1765583438333,-151.77053699,0.00015829,2]
[398391061,1765583438343,-567.11314073,0.0001583,2]
[398391062,1765583438355,-2570.42956106,0.0001583,2]
[398391063,1765583438364,-6949.0369766,0.0001583,2]
[398391064,1765583438375,-1288.49102909,0.0001583,2]
[398391065,1765583438406,-1762.46199431,0.0001583,2]
[398391066,1765583438416,-999.99,0.0001583,2]
[398391067,1765583438426,-150.99,0.0001583,2]
[398391068,1765583438436,-1164.13674861,0.0001583,2]
[398391080,1765583440449,-451.935,0.00015829,2]
[398391081,1765583440927,-48.065,0.00015829,2]
[398391082,1765583440938,-500.0,0.00015829,2]
[398391083,1765583440947,-500.0,0.00015829,2]
[398391084,1765583440959,-521.81321067,0.00015829,2]
[398391085,1765583440969,-500.0,0.00015829,2]
[398391086,1765583440979,-500.0,0.00015829,2]
[398391087,1765583440988,-500.0,0.00015829,2]
[398391088,1765583440999,-500.0,0.00015829,2]
[398391089,1765583441009,-500.0,0.00015829,2]
[398391090,1765583441019,-500.0,0.00015829,2]
[398391091,1765583441028,-500.0,0.00015829,2]
[398391092,1765583441040,-500.0,0.00015829,2]
[398391093,1765583441049,-500.0,0.00015829,2]
[398391094,1765583441059,-500.0,0.00015829,2]
[398391095,1765583441068,-500.0,0.00015829,2]
[398391096,1765583441077,-406.59322305,0.00015829,2]
[398391097,1765583441086,-500.0,0.00015829,2]
[398391098,1765583441095,-500.0,0.00015829,2]
[398391099,1765583441104,-500.0,0.00015829,2]
[398391100,1765583441114,-500.0,0.00015829,2]
[398391101,1765583441123,-500.0,0.00015829,2]
[398391102,1765583441132,-500.0,0.00015829,2]
[398391103,1765583441142,-500.0,0.00015829,2]
[398391104,1765583441151,-500.0,0.00015829,2]
[398391105,1765583441161,-500.0,0.00015829,2]
[398391106,1765583441170,-500.0,0.00015829,2]
[398391107,1765583441180,-500.0,0.00015829,2]
[398391108,1765583441189,-500.0,0.00015829,2]
[398391109,1765583441199,-500.0,0.00015829,2]
[398391110,1765583441208,-500.0,0.00015829,2]
[398391111,1765583441217,-500.0,0.00015829,2]
[398391112,1765583441226,-500.0,0.00015829,2]
[398391113,1765583441235,-500.0,0.00015829,2]
[398391114,1765583441244,-500.0,0.00015829,2]
[398391115,1765583441254,-12952.54325139,0.0001583,2]
[398391116,1765583441265,-9999.99,0.0001583,2]
[398391117,1765583441275,-151.0,0.0001583,2]
[398391118,1765583441284,-151.0,0.0001583,2]
[398391119,1765583441294,-576.870081,0.0001583,2]
[398391121,1765583441303,-151.0,0.0001583,2]
[398391122,1765583441312,-576.870081,0.0001583,2]
[398391124,1765583441322,-156.025272,0.0001583,2]
[398391127,1765583441331,-576.870081,0.0001583,2]
[398391129,1765583441340,-576.870081,0.0001583,2]
[398391130,1765583441349,-224.044894,0.0001583,2]
[398391132,1765583441359,-224.044894,0.0001583,2]
[398391134,1765583441368,-224.044894,0.0001583,2]
[398391136,1765583441377,-224.044894,0.0001583,2]
[398391138,1765583441386,-224.044904,0.0001583,2]
[398391140,1765583441395,-151.0,0.0001583,2]
[398391142,1765583441404,-151.0,0.0001583,2]
[398391144,1765583441413,-151.0,0.0001583,2]
[398391146,1765583441422,-151.0,0.0001583,2]
[398391148,1765583441431,-151.0,0.0001583,2]
[398391150,1765583441440,-151.0,0.0001583,2]
[398391152,1765583441450,-151.0,0.0001583,2]
[398391154,1765583441459,-151.0,0.0001583,2]
[398391156,1765583441468,-151.0,0.0001583,2]
[398391158,1765583441478,-151.0,0.0001583,2]
[398391160,1765583441487,-151.0,0.0001583,2]
[398391162,1765583441496,-151.0,0.0001583,2]
[398391164,1765583441505,-212.277755,0.0001583,2]
[398391166,1765583441515,-244.303735,0.0001583,2]
[398391168,1765583441524,-244.303735,0.0001583,2]
[398391170,1765583441533,-244.303735,0.0001583,2]
[398391172,1765583441543,-244.303735,0.0001583,2]
[398391174,1765583441553,-244.303735,0.0001583,2]
[398391176,1765583441562,-244.303735,0.0001583,2]
[398391178,1765583441572,-244.303735,0.0001583,2]
[398391180,1765583441581,-244.303735,0.0001583,2]
[398391182,1765583441591,-244.303735,0.0001583,2]
[398391184,1765583441600,-244.303735,0.0001583,2]
[398391186,1765583441610,-244.303735,0.0001583,2]
[398391188,1765583441619,-244.303735,0.0001583,2]
[398391190,1765583441628,-244.303735,0.0001583,2]
[398391192,1765583441638,-244.303735,0.0001583,2]
[398391194,1765583441651,-244.303735,0.0001583,2]
[398391196,1765583441662,-244.303728,0.0001583,2]
[398391198,1765583441671,-151.0,0.0001583,2]
[398391200,1765583441681,-308.401252,0.0001583,2]
[398391202,1765583441690,-308.401252,0.0001583,2]
[398391204,1765583441699,-308.401252,0.0001583,2]
[398391206,1765583441708,-308.401252,0.0001583,2]
[398391208,1765583441718,-308.401252,0.0001583,2]
[398391210,1765583441727,-308.401252,0.0001583,2]
[398391212,1765583441736,-308.401252,0.0001583,2]
[398391214,1765583441745,-308.401252,0.0001583,2]
[398391215,1765583441755,-308.401252,0.0001583,2]
[398391217,1765583441765,-308.401252,0.0001583,2]
[398391218,1765583441778,-308.401252,0.0001583,2]
[398391219,1765583441787,-308.401258,0.0001583,2]
[398391220,1765583441796,-151.0,0.0001583,2]
[398391221,1765583441806,-151.0,0.0001583,2]
[398391222,1765583441815,-151.0,0.0001583,2]
[398391223,1765583441824,-151.0,0.0001583,2]
[398391224,1765583441834,-151.0,0.0001583,2]
[398391225,1765583441843,-151.0,0.0001583,2]
[398391226,1765583441854,-151.0,0.0001583,2]
[398391227,1765583441863,-160.536396,0.0001583,2]
[398391228,1765583441872,-151.0,0.0001583,2]
[398391229,1765583441883,-151.0,0.00015831,2]
[398391230,1765583441892,-151.0,0.00015831,2]
[398391231,1765583441902,-500.0,0.00015833,2]
[398391232,1765583441911,-500.0,0.00015833,2]
[398391233,1765583441920,-500.0,0.00015833,2]
[398391234,1765583441930,-1016.11,0.00015833,2]
[398391235,1765583441939,-500.0,0.00015833,2]
[398391236,1765583441949,-500.0,0.00015833,2]
[398391237,1765583441961,-500.0,0.00015833,2]
[398391238,1765583441971,-153.075612,0.00015834,2]
[398391239,1765583441980,-151.0,0.00015834,2]
[398391240,1765583441989,-151.0,0.00015834,2]
[398391241,1765583441999,-576.870081,0.00015834,2]
[398391242,1765583442008,-151.0,0.00015834,2]
[398391243,1765583442018,-576.870081,0.00015834,2]
[398391244,1765583442027,-576.870081,0.00015834,2]
[398391245,1765583442036,-576.870081,0.00015834,2]
[398391246,1765583442047,-150.0,0.00015839,2]
[398391247,1765583442056,-150.0,0.00015865,2]
[398391248,1765583442065,-150.0,0.00015865,2]
[398391249,1765583442075,-150.0,0.00015893,2]
[398391250,1765583442085,-12954.94027682,0.00015897,2]
[398391251,1765583442895,-8465.41157468,0.00015897,2]
[398391252,1765583442904,-150.0,0.00015912,2]
[398391253,1765583442913,-150.0,0.00015912,2]
[398391254,1765583442923,-500.0,0.00015918,2]
[398391255,1765583442932,-2616.69,0.00015924,2]
[398391256,1765583442942,-693.08117626,0.00015933,2]
[398391257,1765583442951,-5679.68819907,0.00015933,2]
[398391259,1765583442964,-500.0,0.00015933,2]
[398391261,1765583442974,-151.0,0.00015933,2]
[398391263,1765583442983,-576.870081,0.00015933,2]
[398391265,1765583442993,-151.0,0.00015933,2]
[398391267,1765583443002,-576.870081,0.00015933,2]
[398391269,1765583443011,-576.870081,0.00015933,2]
[398391271,1765583443020,-576.870081,0.00015933,2]
[398391272,1765583443029,-500.0,0.00015933,2]
[398391273,1765583443038,-1016.11,0.00015933,2]
[398391274,1765583443047,-500.0,0.00015933,2]
[398391275,1765583443056,-500.0,0.00015933,2]
[398391276,1765583443065,-1000.0,0.00015933,2]
[398391277,1765583443076,-131193.223406,0.00015934,2]
[398391278,1765583443085,-260.175595,0.00015934,2]
[398391279,1765583443095,-151.0,0.00015934,2]
[398391280,1765583443104,-576.870081,0.00015934,2]
[398391281,1765583443113,-151.0,0.00015934,2]
[398391282,1765583443122,-576.870081,0.00015934,2]
[398391283,1765583443132,-576.870081,0.00015934,2]
[398391284,1765583443141,-576.870081,0.00015934,2]
[398391285,1765583443150,-150.0,0.00015944,2]
[398391286,1765583443159,-166.66,0.00015949,2]
[398391287,1765583443168,-461.0,0.00015973,2]
[398391288,1765583443178,-151.0,0.00015975,2]
[398391289,1765583443188,-576.870081,0.00015975,2]
[398391290,1765583443197,-151.0,0.00015975,2]
[398391291,1765583443207,-576.870081,0.00015975,2]
[398391292,1765583443216,-576.870081,0.00015975,2]
[398391293,1765583443226,-576.870079,0.00015975,2]
[398391294,1765583443235,-210.78,0.00015981,2]
[398391295,1765583443244,-150.0,0.00015983,2]
[398391296,1765583443253,-150.0,0.0001599,2]
[398391297,1765583443262,-14675.7231559,0.00015997,2]
[398391298,1765583443272,-26938.9686099,0.00015997,2]
[398391299,1765583443281,-97811.7825655,0.00015997,2]
[398391300,1765583443290,-11784.7528023,0.00015997,2]
[398391301,1765583443299,-1086.9172497,0.00015997,2]
[398391302,1765583443308,-150.0,0.00016023,2]
[398391303,1765583443318,-150.0,0.00016023,2]
[398391304,1765583443327,-150.0,0.00016023,2]
[398391305,1765583443336,-495.0,0.00016074,2]
[398391306,1765583443346,-150.0,0.00016078,2]
[398391307,1765583443356,-150.0,0.00016078,2]
[398391308,1765583443366,-150.0,0.00016088,2]
[398391309,1765583443375,-166.65,0.00016101,2]
[398391310,1765583443384,-150.0,0.00016102,2]
[398391311,1765583443393,-150.0,0.00016102,2]
[398391312,1765583443403,-500.0,0.0001611,2]
[398391313,1765583443412,-500.0,0.00016122,2]
[398391314,1765583443422,-388.37586409,0.00016122,2]
[398391315,1765583443432,-168.0,0.00016133,2]
[398391316,1765583443441,-157.94956517,0.00016161,2]
[398391317,1765583443451,-168.0,0.00016163,2]
[398391318,1765583443460,-1407.34,0.00016164,2]
[398391319,1765583443470,-960.38,0.00016164,2]
[398391320,1765583443480,-150.0,0.00016181,2]
[398391321,1765583443490,-168.0,0.00016182,2]
[398391322,1765583443500,-150.0,0.00016185,2]
[398391323,1765583443509,-500.0,0.00016191,2]
[398391324,1765583443518,-500.0,0.00016191,2]
[398391325,1765583443528,-1016.11,0.00016191,2]
[398391328,1765583443787,-168.0,0.00016191,2]
[398391329,1765583443863,-463.9,0.000162,2]
[398391330,1765583443873,-463.9,0.000162,2]
[398391331,1765583443882,-927.71,0.000162,2]
[398391332,1765583443892,-150.0,0.00016207,2]
[398391333,1765583443901,-150.0,0.0001622,2]
[398391334,1765583443911,-500.0,0.00016222,2]
[398391335,1765583443921,-500.0,0.00016222,2]
[398391336,1765583443930,-507.74856479,0.00016222,2]
[398391337,1765583443939,-500.0,0.00016222,2]
[398391338,1765583443949,-509.14584126,0.00016222,2]
[398391339,1765583443960,-7075.56153638,0.00016225,2]
[398391340,1765583443974,-357.73858327,0.00016225,2]
[398391341,1765583443983,-221.16201553,0.00016232,2]
[398391342,1765583443992,-150.0,0.00016244,2]
[398391343,1765583444002,-150.0,0.00016244,2]
[398391344,1765583444013,-150.0,0.0001626,2]
[398391345,1765583444023,-166.66,0.00016265,2]
[398391346,1765583444033,-268.14457826,0.00016272,2]
[398391347,1765583444043,-150.0,0.00016283,2]
[398391348,1765583444053,-150.0,0.00016299,2]
[398391349,1765583444063,-926.47,0.000163,2]
[398391350,1765583444072,-463.9,0.000163,2]
[398391351,1765583444082,-300.0,0.00016305,2]
[398391352,1765583444091,-153.01637236,0.00016305,2]
[398391353,1765583444101,-578.20924308,0.00016305,2]
[398391354,1765583444110,-574.12855637,0.00016305,2]
[398391355,1765583444120,-1011.0,0.00016305,2]
[398391356,1765583444129,-525.0,0.00016305,2]
[398391357,1765583444139,-151.0,0.00016305,2]
[398391358,1765583444149,-200.0,0.00016305,2]
[398391359,1765583444158,-151.0,0.00016305,2]
[398391360,1765583444167,-207.4,0.00016305,2]
[398391361,1765583444176,-215.0738,0.00016305,2]
[398391362,1765583444186,-223.0315306,0.00016305,2]
[398391363,1765583444195,-231.28369723,0.00016305,2]
[398391364,1765583444204,-9000.0,0.00016305,2]
[398391365,1765583444213,-239.84119403,0.00016305,2]
[398391366,1765583444222,-248.71531821,0.00016305,2]
[398391367,1765583444232,-257.91778498,0.00016305,2]
[398391368,1765583444241,-267.46074303,0.00016305,2]
[398391369,1765583444251,-277.35679052,0.00016305,2]
[398391370,1765583444260,-1000.0,0.00016305,2]
[398391371,1765583444270,-1000.0,0.00016305,2]
[398391372,1765583444280,-541.85290647,0.00016305,2]
[398391373,1765583444290,-2444.67392534,0.00016318,2]
[398391374,1765583444299,-150.0,0.00016339,2]
[398391375,1765583444309,-150.0,0.00016339,2]
[398391376,1765583444319,-1011.0,0.0001636,2]
[398391377,1765583444328,-9000.0,0.0001636,2]
[398391378,1765583444338,-627.04271784,0.00016372,2]
[398391379,1765583444348,-200.0,0.00016372,2]
[398391380,1765583444358,-166.67,0.00016375,2]
[398391381,1765583444367,-150.0,0.0001638,2]
[398391382,1765583444377,-150.0,0.00016391,2]
[398391383,1765583444387,-150.0,0.0001641,2]
[398391384,1765583444397,-150.0,0.0001641,2]
[398391385,1765583444406,-1011.0,0.00016415,2]
[398391386,1765583444416,-9000.0,0.00016415,2]
[398391387,1765583444426,-150.0,0.00016417,2]
[398391388,1765583444435,-2616.69,0.00016421,2]
[398391389,1765583444444,-27362.33342848,0.00016431,2]
[398391390,1765583444454,-500.0,0.00016438,2]
[398391391,1765583444463,-500.0,0.00016438,2]
[398391392,1765583444473,-500.0,0.00016438,2]
[398391393,1765583444482,-389.62818497,0.00016438,2]
[398391394,1765583444492,-500.0,0.00016438,2]
[398391395,1765583444501,-500.0,0.00016438,2]
[398391396,1765583444511,-500.0,0.00016438,2]
[398391397,1765583444520,-500.0,0.00016438,2]
[398391398,1765583444529,-1700.0,0.00016438,2]